bitfinex/quotes_BTCUSD_20250624
["timestamp","ask_amount","ask_price","bid_price","bid_amount"]
[1750765857581,1.12820179,105340.0,105330.0,0.42128025]
[1750765857943,1.12820179,105340.0,105330.0,0.43077368]
[1750765858179,1.12820179,105340.0,105330.0,0.42128025]
[1750765860041,1.12820179,105340.0,105330.0,0.43077368]
[1750765867630,0.39753662,105340.0,105330.0,0.44026702]
[1750765867849,0.92884732,105340.0,105330.0,0.44026702]
[1750765868305,1.13769476,105340.0,105330.0,0.44026702]
[1750765868938,1.13769476,105340.0,105330.0,0.43077368]
[1750765869807,1.13769476,105340.0,105330.0,0.42128025]
[1750765870112,1.12820215,105340.0,105330.0,0.42128025]
[1750765870533,1.12820215,105340.0,105330.0,0.26216025]
[1750765870736,1.13430927,105340.0,105330.0,0.41158673]
[1750765871020,1.11532323,105340.0,105330.0,0.0438]
[1750765871238,1.13152323,105340.0,105330.0,0.46141261]
[1750765871448,0.91935471,105340.0,105330.0,0.48989344]
[1750765871867,0.93834029,105340.0,105330.0,0.48989344]
[1750765872062,1.12820169,105340.0,105330.0,0.48989344]
[1750765872275,1.13769476,105340.0,105330.0,0.4804001]
[1750765872831,1.13769476,105340.0,105330.0,0.48989362]
[1750765873039,1.13769476,105340.0,105330.0,0.49938705]
[1750765873248,0.93834029,105340.0,105330.0,0.52994642]
[1750765873877,0.39753608,105340.0,105330.0,0.52994642]
[1750765874087,0.92884678,105340.0,105330.0,0.52994642]
[1750765874300,0.61568148,105340.0,105330.0,0.62544828]
[1750765876735,0.35002613,105340.0,105330.0,0.62544828]
[1750765876989,0.61568148,105340.0,105330.0,0.62544828]
[1750765879229,0.62517373,105340.0,105330.0,0.62544828]
[1750765879637,0.62517373,105340.0,105330.0,0.56612906]
[1750765879845,0.90032151,105340.0,105330.0,0.56612906]
[1750765880672,0.90981403,105340.0,105330.0,0.56612906]
[1750765881630,0.90032151,105340.0,105330.0,0.56612906]
[1750765883154,0.93833703,105340.0,105330.0,0.56612906]
[1750765884722,0.94782973,105340.0,105330.0,0.56612906]
[1750765885098,0.95732261,105340.0,105330.0,0.56612906]
[1750765885310,0.94782973,105340.0,105330.0,0.56612906]
[1750765885545,0.93833703,105340.0,105330.0,0.56612906]
[1750765885710,0.94782964,105340.0,105330.0,0.56612906]
[1750765886869,0.95732243,105340.0,105330.0,0.56612906]
[1750765887732,0.95732306,105340.0,105330.0,0.56612906]
[1750765888901,0.95732306,105340.0,105330.0,0.53532906]
[1750765889984,1.14718446,105340.0,105330.0,0.04356]
[1750765890195,1.41466225,105340.0,105330.0,0.04356]
[1750765890407,1.41466225,105340.0,105330.0,0.001]
[1750765890629,1.41466225,105340.0,105330.0,0.20212]
[1750765891560,1.5101322,105340.0,105330.0,0.0434]
[1750765891777,0.22219543,105330.0,105320.0,0.0424]
[1750765892004,0.22219543,105330.0,105320.0,0.20112]
[1750765892005,0.75350613,105330.0,105320.0,0.20112]
[1750765894350,0.57998656,105320.0,105310.0,0.42741103]
[1750765894573,0.85399589,105320.0,105310.0,0.62849103]
[1750765894982,0.88252789,105320.0,105310.0,0.46981103]
[1750765895189,0.8730332,105320.0,105310.0,0.228]
[1750765895402,0.8730332,105320.0,105310.0,0.2704]
[1750765895611,0.8730332,105320.0,105310.0,0.42908]
[1750765895835,0.8730332,105320.0,105310.0,0.43008]
[1750765896686,0.8730332,105320.0,105310.0,0.42908]
[1750765897124,0.8730332,105320.0,105310.0,0.43108]
[1750765897566,0.8730332,105320.0,105310.0,0.42908]
[1750765901890,0.8730332,105320.0,105310.0,0.62849125]
[1750765902287,0.8730332,105320.0,105310.0,0.42908]
[1750765902511,0.8730332,105320.0,105310.0,0.63798666]
[1750765902956,0.8730332,105320.0,105310.0,0.61899548]
[1750765903607,0.8730332,105320.0,105310.0,0.62849125]
[1750765904255,0.8730332,105320.0,105310.0,0.63798693]
[1750765904462,0.8575332,105320.0,105310.0,0.63798693]
[1750765904897,0.8419332,105320.0,105310.0,0.64748252]
[1750765905127,0.8419332,105320.0,105310.0,0.65697802]
[1750765905336,0.57741856,105320.0,105310.0,0.6664728]
[1750765905566,0.87041718,105320.0,105310.0,0.66647298]
[1750765905792,0.87041718,105320.0,105310.0,0.66647253]
[1750765906294,0.39701499,105320.0,105310.0,0.69777208]
[1750765906515,0.66152981,105320.0,105310.0,0.79327394]
[1750765906965,0.67102405,105320.0,105310.0,0.79327394]
[1750765907642,0.68051847,105320.0,105310.0,0.79527394]
[1750765907846,0.67102396,105320.0,105310.0,0.79527394]
[1750765908272,0.65203575,105320.0,105310.0,0.79527394]
[1750765908480,0.66152999,105320.0,105310.0,0.79527394]
[1750765908936,0.6615299,105320.0,105310.0,0.79627394]
[1750765909145,0.368532,105320.0,105310.0,0.79627394]
[1750765909784,0.37802606,105320.0,105310.0,0.79627394]
[1750765909993,0.368532,105320.0,105310.0,0.79627394]
[1750765910180,0.368532,105320.0,105310.0,0.87101993]
[1750765910390,0.37802606,105320.0,105310.0,0.79627394]
[1750765910819,0.3875203,105320.0,105310.0,0.79627394]
[1750765912840,0.39701472,105320.0,105310.0,0.79627394]
[1750765913047,0.68051847,105320.0,105310.0,0.79627394]
[1750765913260,0.67102405,105320.0,105310.0,0.79627394]
[1750765913475,0.68051838,105320.0,105310.0,0.79627394]
[1750765914367,0.67102405,105320.0,105310.0,0.79627394]
[1750765915238,0.66152981,105320.0,105310.0,0.79627394]
[1750765915683,0.67102396,105320.0,105310.0,0.79627394]
[1750765915896,0.68051838,105320.0,105310.0,0.79627394]
[1750765916339,0.68051829,105320.0,105310.0,0.79627394]
[1750765916555,0.67102396,105320.0,105310.0,0.79627394]
[1750765917071,0.68051829,105320.0,105310.0,0.79627394]
[1750765917900,0.69001271,105320.0,105310.0,0.79627394]
[1750765918751,0.69950731,105320.0,105310.0,0.79627394]
[1750765918973,0.69950794,105320.0,105310.0,0.79627394]
[1750765919399,0.88940539,105320.0,105310.0,0.76497394]
[1750765919595,0.69950857,105320.0,105310.0,0.76497394]
[1750765919800,0.69001379,105320.0,105310.0,0.76497394]
[1750765920619,0.6805191,105320.0,105310.0,0.76497394]
[1750765920833,0.69001379,105320.0,105310.0,0.76465394]
[1750765922132,0.87991124,105320.0,105310.0,0.65965694]
[1750765922336,0.87991124,105320.0,105310.0,0.66915208]
[1750765922542,0.88940602,105320.0,105310.0,0.66915208]
[1750765923775,0.6805191,105320.0,105310.0,0.66915208]
[1750765923996,0.69001379,105320.0,105310.0,0.66915208]
[1750765925069,0.87991124,105320.0,105310.0,0.66915208]
[1750765925277,0.88940602,105320.0,105310.0,0.66915208]
[1750765925709,0.69001379,105320.0,105310.0,0.66915208]
[1750765926334,0.88940602,105320.0,105310.0,0.66915208]
[1750765927424,0.69950857,105320.0,105310.0,0.66915208]
[1750765928303,0.69950857,105320.0,105310.0,0.44115208]
[1750765928714,0.88940602,105320.0,105310.0,0.44115208]
[1750765930035,0.69950857,105320.0,105310.0,0.44115208]
[1750765930453,0.94747916,105320.0,105310.0,0.44115208]
[1750765931417,0.92848969,105320.0,105310.0,0.44115208]
[1750765931621,0.92848969,105320.0,105310.0,0.47275208]
[1750765932026,0.91899509,105320.0,105310.0,0.47275208]
[1750765932669,0.63426917,105320.0,105310.0,0.56825394]
[1750765932997,0.368532,105320.0,105310.0,0.71825394]
[1750765936217,0.368532,105320.0,105310.0,0.94625394]
[1750765936721,0.028532,105320.0,105310.0,0.94625394]
[1750765937055,0.80322615,105330.0,105320.0,0.44988098]
[1750765937263,0.83175215,105330.0,105320.0,0.54538284]
[1750765938423,0.84124549,105330.0,105320.0,0.54538284]
[1750765938811,0.84124549,105330.0,105320.0,0.62012883]
[1750765939029,0.84124549,105330.0,105320.0,0.54538284]
[1750765939189,0.85073901,105330.0,105320.0,0.54538284]
[1750765939564,0.84124549,105330.0,105320.0,0.54538284]
[1750765939782,0.83175215,105330.0,105320.0,0.54538284]
[1750765939991,0.8412454,105330.0,105320.0,0.54538284]
[1750765940825,0.55787198,105330.0,105320.0,0.54738284]
[1750765941069,0.8412454,105330.0,105320.0,0.54738284]
[1750765941241,0.8412454,105330.0,105320.0,0.54838284]
[1750765941838,0.54837873,105330.0,105320.0,0.54838284]
[1750765942082,0.54837873,105330.0,105320.0,0.84838284]
[1750765942471,0.51985273,105330.0,105320.0,0.84838284]
[1750765952815,0.81271931,105330.0,105320.0,0.84838284]
[1750765953042,0.80322615,105330.0,105320.0,0.84838284]
[1750765954377,0.78550384,105330.0,105320.0,0.84838284]
[1750765955426,0.78550384,105330.0,105320.0,0.89046284]
[1750765957846,0.51985273,105330.0,105320.0,0.89046284]
[1750765958221,0.78550384,105330.0,105320.0,0.89046284]
[1750765963042,0.17985273,105330.0,105320.0,1.15611395]
[1750765963223,0.00056069,105340.0,105330.0,0.40076025]
[1750765963417,0.00056069,105340.0,105330.0,0.65438211]
[1750765964638,0.00056069,105340.0,105330.0,0.92003322]
[1750765965324,0.00056069,105340.0,105330.0,0.92103322]
[1750765965733,0.00056069,105340.0,105330.0,0.92303322]
[1750765966357,0.00056069,105340.0,105330.0,0.65638211]
[1750765966763,0.00056069,105340.0,105330.0,0.65938211]
[1750765966963,0.00056069,105340.0,105330.0,0.65438211]
[1750765967399,0.00056069,105340.0,105330.0,0.65838211]
[1750765967622,0.00056069,105340.0,105330.0,0.65938211]
[1750765968028,0.00056069,105340.0,105330.0,0.65838211]
[1750765968230,0.00056069,105340.0,105330.0,0.66038211]
[1750765978267,0.00056069,105340.0,105330.0,0.50226211]
[1750765978470,0.28378865,105340.0,105330.0,0.66974211]
[1750765980607,0.00056069,105340.0,105330.0,0.66974211]
[1750765980952,0.00056069,105340.0,105330.0,0.70144211]
[1750765983844,0.00056069,105340.0,105330.0,0.55144211]
[1750765984052,0.00056069,105340.0,105330.0,0.81970211]
[1750765984265,0.03176069,105340.0,105330.0,0.81970211]
[1750765984472,0.28378865,105340.0,105330.0,0.81970211]
[1750765985111,0.00056069,105340.0,105330.0,0.81970211]
[1750765987120,0.00056069,105340.0,105330.0,0.81966211]
[1750765992301,0.28378865,105340.0,105330.0,0.81966211]
[1750765992505,0.00056069,105340.0,105330.0,0.81966211]
[1750765992735,0.28378865,105340.0,105330.0,0.81966211]
[1750765993223,0.00056069,105340.0,105330.0,0.83476211]
[1750765993653,0.00056069,105340.0,105330.0,0.85096211]
[1750765995523,0.00056069,105340.0,105330.0,0.81966211]
[1750765997404,0.00056069,105340.0,105330.0,1.04762211]
[1750766004397,0.26614354,105340.0,105330.0,1.04762211]
[1750766009929,0.26614354,105340.0,105330.0,0.88974211]
[1750766010152,0.56422639,105340.0,105330.0,1.04742211]
[1750766010353,0.29864354,105340.0,105330.0,1.04742211]
[1750766013149,0.29864354,105340.0,105330.0,0.84782211]
[1750766013360,0.29864354,105340.0,105330.0,1.04726211]
[1750766014414,0.30813579,105340.0,105330.0,1.04726211]
[1750766014622,0.29864354,105340.0,105330.0,1.04726211]
[1750766015235,0.29864354,105340.0,105330.0,1.04722211]
[1750766015440,0.30813588,105340.0,105330.0,1.04722211]
[1750766015650,0.57371873,105340.0,105330.0,1.04722211]
[1750766015889,0.57371864,105340.0,105330.0,1.04722211]
[1750766016601,0.58321098,105340.0,105330.0,1.04722211]
[1750766017400,0.56422639,105340.0,105330.0,1.04722211]
[1750766017598,0.29864354,105340.0,105330.0,1.04722211]
[1750766018576,0.30813588,105340.0,105330.0,1.04722211]
[1750766018798,0.30813579,105340.0,105330.0,1.04722211]
[1750766019199,0.29864354,105340.0,105330.0,1.04722211]
[1750766019793,0.00056069,105340.0,105330.0,1.04722211]
[1750766020018,0.26614354,105340.0,105330.0,1.04722211]
[1750766025691,0.27563579,105340.0,105330.0,1.04722211]
[1750766026298,0.26614354,105340.0,105330.0,1.04722211]
[1750766037176,0.00056069,105340.0,105330.0,1.04722211]
[1750766037303,0.26614354,105340.0,105330.0,1.04722211]
[1750766039954,0.26614354,105340.0,105330.0,1.19722211]
[1750766041777,0.26614354,105340.0,105330.0,1.19686211]
[1750766043996,0.30082831,105340.0,105330.0,1.03942211]
[1750766044321,0.32652065,105340.0,105330.0,1.19682211]
[1750766044523,0.5921035,105340.0,105330.0,1.19682211]
[1750766044720,0.60159756,105340.0,105330.0,0.8013207]
[1750766044953,0.57311882,105340.0,105330.0,0.9063159]
[1750766045163,0.34555358,105340.0,105330.0,0.9063159]
[1750766045550,0.06098569,105340.0,105330.0,0.9063159]
[1750766045782,0.26614354,105340.0,105330.0,1.2003159]
[1750766046009,0.26614354,105340.0,105330.0,1.2013159]
[1750766047678,0.27563597,105340.0,105330.0,1.2013159]
[1750766048724,0.54121882,105340.0,105330.0,1.2013159]
[1750766049839,0.54121873,105340.0,105330.0,1.2013159]
[1750766050677,0.55071134,105340.0,105330.0,1.2013159]
[1750766050893,0.58301125,105340.0,105330.0,0.9013159]
[1750766051099,0.58301116,105340.0,105330.0,0.97606189]
[1750766051300,0.58301116,105340.0,105330.0,0.9013159]
[1750766052126,0.56651116,105340.0,105330.0,0.9013159]
[1750766052333,0.55701873,105340.0,105330.0,0.7023159]
[1750766052540,0.56651116,105340.0,105330.0,0.9012759]
[1750766053140,0.56651116,105340.0,105330.0,0.9012359]
[1750766053502,0.57600368,105340.0,105330.0,0.9012359]
[1750766053708,0.57600386,105340.0,105330.0,0.9012359]
[1750766053909,0.59240377,105340.0,105330.0,0.9012359]
[1750766054631,0.58291116,105340.0,105330.0,0.9012359]
[1750766055048,0.58291116,105340.0,105330.0,0.7023159]
[1750766055265,0.59240377,105340.0,105330.0,0.9012359]
[1750766056808,0.79175805,105340.0,105330.0,0.41883942]
[1750766057016,0.60189665,105340.0,105330.0,0.63674673]
[1750766057193,0.63991562,105340.0,105330.0,0.64624007]
[1750766057466,0.82977702,105340.0,105330.0,0.72098606]
[1750766057672,0.82977702,105340.0,105330.0,0.64624007]
[1750766057856,0.63042265,105340.0,105330.0,0.64624007]
[1750766058409,0.82977712,105340.0,105330.0,0.64624007]
[1750766058818,0.82028478,105340.0,105330.0,0.63670673]
[1750766059019,0.63042338,105340.0,105330.0,0.64620016]
[1750766059212,0.63042328,105340.0,105330.0,0.64620016]
[1750766059687,0.63991635,105340.0,105330.0,0.64620016]
[1750766059841,1.40688268,105340.0,105330.0,0.42833339]
[1750766060045,1.14129983,105340.0,105330.0,0.64620097]
[1750766060366,1.14129983,105340.0,105330.0,0.65569458]
[1750766061138,1.14129983,105340.0,105330.0,0.6651881]
[1750766061777,0.61013413,105340.0,105330.0,0.66518747]
[1750766062121,1.14129983,105340.0,105330.0,0.66518747]
[1750766062239,0.94194509,105340.0,105330.0,0.66518747]
[1750766062440,0.9609304,105340.0,105330.0,0.66518747]
[1750766063098,1.1507918,105340.0,105330.0,0.66518747]
[1750766063299,1.16977784,105340.0,105330.0,0.65569413]
[1750766063476,1.16977784,105340.0,105330.0,0.66518756]
[1750766063690,1.16028541,105340.0,105330.0,0.66518756]
[1750766066107,1.16028541,105340.0,105330.0,0.437827]
[1750766066310,0.95143752,105340.0,105330.0,0.65549395]
[1750766066512,0.93240413,105340.0,105330.0,0.65549395]
[1750766067692,0.92291134,105340.0,105330.0,0.65549395]
[1750766067903,0.90392639,105340.0,105330.0,0.65549395]
[1750766068112,0.93240386,105340.0,105330.0,0.65549395]
[1750766068535,0.91600386,105340.0,105330.0,0.65549395]
[1750766069341,0.90020377,105340.0,105330.0,0.65549395]
[1750766069550,0.90969656,105340.0,105330.0,0.65549395]
[1750766069926,0.90020377,105340.0,105330.0,0.65549395]
[1750766070481,0.90969647,105340.0,105330.0,0.65549395]
[1750766070854,0.91918926,105340.0,105330.0,0.65549395]
[1750766071259,0.90969647,105340.0,105330.0,0.73023994]
[1750766071428,0.90020377,105340.0,105330.0,0.65549395]
[1750766071632,0.90969656,105340.0,105330.0,0.65549395]
[1750766072167,0.90020377,105340.0,105330.0,0.65549395]
[1750766072376,0.35954546,105340.0,105330.0,0.65549395]
[1750766072626,0.88121864,105340.0,105330.0,0.65549395]
[1750766072851,0.34056069,105340.0,105330.0,0.93329581]
[1750766073146,0.00056069,105340.0,105330.0,1.34887866]
[1750766073330,0.00056069,105340.0,105330.0,1.08329581]
[1750766074730,0.26614354,105340.0,105330.0,1.08329581]
[1750766076114,0.00056069,105340.0,105330.0,1.08329581]
[1750766081031,0.30891789,105340.0,105330.0,1.05087581]
[1750766081231,0.29331789,105340.0,105330.0,1.05087581]
[1750766081656,0.30281032,105340.0,105330.0,1.05087581]
[1750766082095,0.29331789,105340.0,105330.0,1.05087581]
[1750766082644,1.1760906,105340.0,105330.0,0.04244]
[1750766082867,1.19884852,105340.0,105330.0,0.04244]
[1750766083318,1.22737852,105340.0,105330.0,0.04244]
[1750766083544,1.33742123,105340.0,105330.0,0.04244]
[1750766084003,0.86367125,105310.0,105300.0,0.51069]
[1750766084231,0.86367125,105310.0,105300.0,0.55213]
[1750766084442,0.86367125,105310.0,105300.0,0.70925]
[1750766084855,0.89220425,105310.0,105300.0,0.70925]
[1750766085288,1.17546911,105310.0,105300.0,0.35213]
[1750766085727,1.17546911,105310.0,105300.0,0.28129]
[1750766086157,1.17546911,105310.0,105300.0,0.08273]
[1750766086373,1.17646911,105310.0,105300.0,0.12421]
[1750766086616,1.17646911,105310.0,105300.0,0.28133]
[1750766088682,1.18046911,105310.0,105300.0,0.28133]
[1750766091237,1.27597097,105310.0,105300.0,0.28133]
[1750766091485,1.18046911,105310.0,105300.0,0.28133]
[1750766091755,1.18046911,105310.0,105300.0,0.31041276]
[1750766092006,0.89720425,105310.0,105300.0,0.31041276]
[1750766094538,0.89720425,105310.0,105300.0,0.70034628]
[1750766094742,0.89720425,105310.0,105300.0,0.67126352]
[1750766094946,0.89720425,105310.0,105300.0,0.48133]
[1750766095366,0.89720425,105310.0,105300.0,0.49082667]
[1750766095593,0.89720425,105310.0,105300.0,0.69025677]
[1750766096437,0.88770893,105310.0,105300.0,0.48133]
[1750766097646,0.88770893,105310.0,105300.0,0.28133]
[1750766098294,0.88770893,105310.0,105300.0,0.67126352]
[1750766098507,0.88770893,105310.0,105300.0,0.68076019]
[1750766098936,0.88770893,105310.0,105300.0,0.49082667]
[1750766099150,0.88770893,105310.0,105300.0,0.48133]
[1750766101383,0.86570461,105310.0,105300.0,0.69025659]
[1750766101603,0.87519993,105310.0,105300.0,0.69025659]
[1750766101810,0.345,105310.0,105300.0,0.9851508]
[1750766102012,0.63776009,105310.0,105300.0,0.9851508]
[1750766102233,0.63775991,105310.0,105300.0,0.9851508]
[1750766102651,0.62326486,105310.0,105300.0,0.9851508]
[1750766103123,0.32128892,105320.0,105310.0,0.39920171]
[1750766103341,0.31174767,105320.0,105310.0,0.49470357]
[1750766103565,0.65174767,105320.0,105310.0,0.49470357]
[1750766104006,0.65174749,105320.0,105310.0,0.49470357]
[1750766104460,0.63275892,105320.0,105310.0,0.49470357]
[1750766104681,0.64225316,105320.0,105310.0,0.49470357]
[1750766104910,0.63275892,105320.0,105310.0,0.49470357]
[1750766105117,0.64225307,105320.0,105310.0,0.49470357]
[1750766105553,0.65174731,105320.0,105310.0,0.49470357]
[1750766105795,0.66124173,105320.0,105310.0,0.49470357]
[1750766106006,0.66124173,105320.0,105310.0,0.49570357]
[1750766106454,0.67073624,105320.0,105310.0,0.49570357]
[1750766106920,0.66124218,105320.0,105310.0,0.49570357]
[1750766107161,0.65174767,105320.0,105310.0,0.49570357]
[1750766107389,0.64225325,105320.0,105310.0,0.49570357]
[1750766108038,0.65174758,105320.0,105310.0,0.49570357]
[1750766108886,0.85113999,105320.0,105310.0,0.47671302]
[1750766109128,0.64225361,105320.0,105310.0,0.52279907]
[1750766109349,0.85114053,105320.0,105310.0,0.52279907]
[1750766109570,0.8606354,105320.0,105310.0,0.52279907]
[1750766110631,0.64225361,105320.0,105310.0,0.52279907]
[1750766110838,0.6517483,105320.0,105310.0,0.53849907]
[1750766111454,0.85114053,105320.0,105310.0,0.53849907]
[1750766112076,0.8574462,105320.0,105310.0,0.29591302]
[1750766112290,0.8574462,105320.0,105310.0,0.50376861]
[1750766112510,0.8416462,105320.0,105310.0,0.50376861]
[1750766112725,0.86355178,105320.0,105310.0,0.38927548]
[1750766112935,0.86355178,105320.0,105310.0,0.19936]
[1750766113804,0.86355178,105320.0,105310.0,0.001]
[1750766114014,0.89208378,105320.0,105310.0,0.19936]
[1750766117432,0.86068378,105320.0,105310.0,0.39877116]
[1750766117856,0.6802812,105320.0,105310.0,0.43436207]
[1750766118070,0.87017865,105320.0,105310.0,0.43436216]
[1750766118548,0.87017865,105320.0,105310.0,0.44385748]
[1750766118763,0.87017865,105320.0,105310.0,0.45335262]
[1750766118764,0.67078597,105320.0,105310.0,0.45335262]
[1750766119151,0.6897749,105320.0,105310.0,0.52809861]
[1750766119397,0.67078543,105320.0,105310.0,0.45335262]
[1750766119639,0.65179686,105320.0,105310.0,0.54885448]
[1750766119833,0.31179686,105320.0,105310.0,0.71395448]
[1750766120270,0.62326486,105320.0,105310.0,0.71395448]
[1750766120481,0.62326486,105320.0,105310.0,0.78870047]
[1750766120687,0.62326486,105320.0,105310.0,0.71395448]
[1750766122188,0.62326486,105320.0,105310.0,0.86395448]
[1750766122832,0.28526486,105330.0,105320.0,0.59928098]
[1750766123046,0.62526486,105330.0,105320.0,0.69478284]
[1750766124081,0.62626486,105330.0,105320.0,0.69478284]
[1750766124822,0.62620486,105330.0,105320.0,0.69478284]
[1750766125434,0.65472886,105330.0,105320.0,0.69478284]
[1750766125639,0.65372886,105330.0,105320.0,0.69478284]
[1750766125972,0.65372886,105330.0,105320.0,0.69578284]
[1750766126382,0.65372886,105330.0,105320.0,0.69478284]
[1750766126629,0.65372886,105330.0,105320.0,0.69778284]
[1750766127213,0.66322202,105330.0,105320.0,0.69778284]
[1750766127415,0.66322202,105330.0,105320.0,0.69878284]
[1750766127628,0.65372886,105330.0,105320.0,0.69878284]
[1750766130266,0.67271545,105330.0,105320.0,0.69878284]
[1750766130536,0.66322202,105330.0,105320.0,0.69878284]
[1750766130934,0.96547401,105330.0,105320.0,0.86608284]
[1750766131152,0.95598031,105330.0,105320.0,0.86608284]
[1750766131304,0.67271545,105330.0,105320.0,0.86608284]
[1750766131516,0.68220906,105330.0,105320.0,0.86608284]
[1750766131741,0.67271545,105330.0,105320.0,0.86608284]
[1750766132199,0.68220906,105330.0,105320.0,0.86608284]
[1750766132426,0.67271545,105330.0,105320.0,0.86608284]
[1750766132634,0.66322202,105330.0,105320.0,0.86608284]
[1750766132833,0.67271536,105330.0,105320.0,0.86608284]
[1750766133084,0.67271536,105330.0,105320.0,0.88138284]
[1750766133741,0.68220879,105330.0,105320.0,0.89728284]
[1750766134093,0.6917024,105330.0,105320.0,0.69908284]
[1750766134290,0.68220879,105330.0,105320.0,0.89728284]
[1750766134764,0.6917024,105330.0,105320.0,0.89728284]
[1750766136419,0.70119619,105330.0,105320.0,0.89728284]
[1750766136644,1.16484785,105330.0,105320.0,0.69709409]
[1750766136881,1.17756081,105330.0,105320.0,0.69709409]
[1750766137357,1.16806702,105330.0,105320.0,0.69709409]
[1750766137576,1.16806702,105330.0,105320.0,0.49889409]
[1750766137811,1.16806702,105330.0,105320.0,0.60159223]
[1750766138220,1.16806702,105330.0,105320.0,0.4022]
[1750766138221,1.15857314,105330.0,105320.0,0.4022]
[1750766139054,1.15857314,105330.0,105320.0,0.3992]
[1750766139268,1.15857314,105330.0,105320.0,0.4002]
[1750766139478,1.15857314,105330.0,105320.0,0.3992]
[1750766140637,1.15857314,105330.0,105320.0,0.3982]
[1750766140818,1.15957314,105330.0,105320.0,0.3982]
[1750766141053,1.15957314,105330.0,105320.0,0.1982]
[1750766141494,0.55589232,105320.0,105310.0,0.23753577]
[1750766141721,0.86445178,105320.0,105310.0,0.63510684]
[1750766142173,0.87394629,105320.0,105310.0,0.62561125]
[1750766142588,0.84164629,105320.0,105310.0,0.65409766]
[1750766142800,0.84164629,105320.0,105310.0,0.66359289]
[1750766143010,0.84164629,105320.0,105310.0,0.66459289]
[1750766143417,0.84164629,105320.0,105310.0,0.65509766]
[1750766143778,0.84164629,105320.0,105310.0,0.66459289]
[1750766144357,0.67078497,105320.0,105310.0,0.66459226]
[1750766144552,0.68027966,105320.0,105310.0,0.66459226]
[1750766146289,0.68977444,105320.0,105310.0,0.66459226]
[1750766146494,0.59640703,105320.0,105310.0,0.66459226]
[1750766146701,0.67078497,105320.0,105310.0,0.66459226]
[1750766147120,0.68027966,105320.0,105310.0,0.66459226]
[1750766148382,0.87017711,105320.0,105310.0,0.66459226]
[1750766148590,0.87967198,105320.0,105310.0,0.66459226]
[1750766149223,0.87967198,105320.0,105310.0,0.65509712]
[1750766149855,0.87967198,105320.0,105310.0,0.64560189]
[1750766150070,0.68027966,105320.0,105310.0,0.65509703]
[1750766150295,0.87967189,105320.0,105310.0,0.65509703]
[1750766150508,0.68977444,105320.0,105310.0,0.65509703]
[1750766151463,0.87967189,105320.0,105310.0,0.65509703]
[1750766151873,0.67078497,105320.0,105310.0,0.65509703]
[1750766152286,0.68027966,105320.0,105310.0,0.65509703]
[1750766152566,0.68977444,105320.0,105310.0,0.65509703]
[1750766152780,0.87967189,105320.0,105310.0,0.65509703]
[1750766152986,0.91137225,105320.0,105310.0,0.48872189]
[1750766153188,0.89238296,105320.0,105310.0,0.62661116]
[1750766153663,0.89238296,105320.0,105310.0,0.63606675]
[1750766153874,0.89238296,105320.0,105310.0,0.64556225]
[1750766154225,0.88288818,105320.0,105310.0,0.63606675]
[1750766154658,0.87339331,105320.0,105310.0,0.62657116]
[1750766155229,0.87339331,105320.0,105310.0,0.61707548]
[1750766155432,0.87339331,105320.0,105310.0,0.42716]
[1750766155632,0.87339331,105320.0,105310.0,0.61707548]
[1750766155853,0.87339331,105320.0,105310.0,0.42716]
[1750766156552,0.87339331,105320.0,105310.0,0.61707548]
[1750766157059,0.87339331,105320.0,105310.0,0.42716]
[1750766158464,0.87339331,105320.0,105310.0,0.62657116]
[1750766159650,0.87339331,105320.0,105310.0,0.63606675]
[1750766160409,0.87339331,105320.0,105310.0,0.61707548]
[1750766161039,0.87339331,105320.0,105310.0,0.42716]
[1750766163318,0.87339331,105320.0,105310.0,0.61707548]
[1750766163954,0.87339331,105320.0,105310.0,0.42716]
[1750766164763,0.87379331,105320.0,105310.0,0.27032]
[1750766165276,0.87379331,105320.0,105310.0,0.42716]
[1750766165277,1.15705817,105320.0,105310.0,0.42716]
[1750766165669,1.15705817,105320.0,105310.0,0.04228]
[1750766165670,1.27532919,105320.0,105310.0,0.04228]
[1750766166022,1.29312125,105320.0,105310.0,0.19812]
[1750766166323,1.29412125,105320.0,105310.0,0.19812]
[1750766166550,1.27632919,105320.0,105310.0,0.19812]
[1750766166750,1.27532919,105320.0,105310.0,0.19812]
[1750766166968,1.27832919,105320.0,105310.0,0.19812]
[1750766167387,1.31734848,105320.0,105310.0,0.04128]
[1750766167597,1.31734848,105320.0,105310.0,0.19812]
[1750766167828,1.31734848,105320.0,105310.0,0.04128]
[1750766168031,1.31734828,105320.0,105310.0,0.04128]
[1750766168240,1.32624932,105320.0,105310.0,0.04128]
[1750766169087,0.23121107,105310.0,105300.0,0.08273]
[1750766169347,1.25599439,105310.0,105300.0,0.08273]
[1750766169645,1.28047463,105310.0,105300.0,0.08273]
[1750766170095,1.28047479,105310.0,105300.0,0.08273]
[1750766170539,1.27479836,105310.0,105300.0,0.08273]
[1750766170727,1.25699439,105310.0,105300.0,0.110807]
[1750766171222,1.23424265,105310.0,105300.0,0.110807]
[1750766171476,0.85547593,105310.0,105300.0,0.110807]
[1750766173338,0.82367593,105310.0,105300.0,0.110807]
[1750766173556,0.85221193,105310.0,105300.0,0.110807]
[1750766173762,0.86821193,105310.0,105300.0,0.110807]
[1750766173970,0.86821193,105310.0,105300.0,0.08273]
[1750766174377,0.85221193,105310.0,105300.0,0.08273]
[1750766175296,0.86170743,105310.0,105300.0,0.32405668]
[1750766175507,0.85221193,105310.0,105300.0,0.32405668]
[1750766175925,0.85221193,105310.0,105300.0,0.33355308]
[1750766180796,0.85221193,105310.0,105300.0,0.34304939]
[1750766181663,0.86170725,105310.0,105300.0,0.54304939]
[1750766181877,0.87120302,105310.0,105300.0,0.54304939]
[1750766182444,0.58793816,105310.0,105300.0,0.54304939]
[1750766182650,0.87120302,105310.0,105300.0,0.55254552]
[1750766182968,0.68128754,105310.0,105300.0,0.64804738]
[1750766183165,0.87120302,105310.0,105300.0,0.64804738]
[1750766183748,0.87120302,105310.0,105300.0,0.64804675]
[1750766183958,0.67179177,105310.0,105300.0,0.64804675]
[1750766185045,0.87120293,105310.0,105300.0,0.64804675]
[1750766185806,0.68128682,105310.0,105300.0,0.64804675]
[1750766186643,0.89019375,105310.0,105300.0,0.64804675]
[1750766186849,0.89019375,105310.0,105300.0,0.63855071]
[1750766187258,0.8806987,105310.0,105300.0,0.63855071]
[1750766188494,0.86170779,105310.0,105300.0,0.61006187]
[1750766188646,0.86721211,105310.0,105300.0,0.42950352]
[1750766188851,0.86721211,105310.0,105300.0,0.23957]
[1750766189240,0.85221211,105310.0,105300.0,0.23957]
[1750766192781,0.85221211,105310.0,105300.0,0.4390001]
[1750766192989,0.85221211,105310.0,105300.0,0.44849659]
[1750766193901,0.85221211,105310.0,105300.0,0.42950352]
[1750766194106,0.84271634,105310.0,105300.0,0.42950352]
[1750766194556,0.84271634,105310.0,105300.0,0.43900019]
[1750766196118,0.84271634,105310.0,105300.0,0.48020019]
[1750766197028,0.84271634,105310.0,105300.0,0.29026667]
[1750766197436,0.84271634,105310.0,105300.0,0.28077]
[1750766198048,0.50271634,105310.0,105300.0,0.28077]